[Event "Skol-SM i Schack 2024, Grupp A"]
[Site "Arena Varberg, Kattegattsvagen 26, Varberg, Sweden"]
[Date "2024.10.13"]
[Round "8.1"]
[White "Joensson, Oscar"]
[Black "Eriksson, Wilmer"]
[Result "1/2-1/2"]
[TimeControl "45 minutes + 10 seconds per move from move one."]
[WhiteFideId "1729977"]
[BlackFideId "1768298"]
[WhiteElo "1955"]
[BlackElo "1849"]

1. d4 {[%clk 00:45:18]} {[%emt 00:00:02]} Nf6 {[%clk 00:45:17]} {[%emt
00:00:03]} 2. c4 {[%clk 00:45:26]} {[%emt 00:00:02]} c5 {[%clk 00:45:22]}
{[%emt 00:00:05]} 3. Nf3 {[%clk 00:45:33]} {[%emt 00:00:03]} cxd4 {[%clk
00:45:23]} {[%emt 00:00:09]} 4. Nxd4 {[%clk 00:45:42]} {[%emt 00:00:02]} e5
{[%clk 00:45:31]} {[%emt 00:00:01]} 5. Nb5 {[%clk 00:45:42]} {[%emt 00:00:10]}
d5 {[%clk 00:45:39]} {[%emt 00:00:03]} 6. cxd5 {[%clk 00:45:47]} {[%emt
00:00:04]} Bc5 {[%clk 00:45:28]} {[%emt 00:00:21]} 7. e3 {[%clk 00:45:24]}
{[%emt 00:00:33]} O-O {[%clk 00:45:27]} {[%emt 00:00:11]} 8. Be2 {[%clk
00:45:03]} {[%emt 00:00:31]} e4 {[%clk 00:45:01]} {[%emt 00:00:36]} 9. N5c3
{[%clk 00:44:01]} {[%emt 00:01:11]} Qe7 {[%clk 00:44:38]} {[%emt 00:00:34]} 10.
O-O {[%clk 00:42:56]} {[%emt 00:01:14]} Rd8 {[%clk 00:43:57]} {[%emt 00:00:51]}
11. Nd2 {[%clk 00:41:12]} {[%emt 00:01:54]} Bf5 {[%clk 00:43:54]} {[%emt
00:00:13]} 12. Qb3 {[%clk 00:41:07]} {[%emt 00:00:16]} Nbd7 {[%clk 00:40:01]}
{[%emt 00:04:04]} 13. Nc4 {[%clk 00:40:22]} {[%emt 00:00:54]} Ne5 {[%clk
00:38:17]} {[%emt 00:01:55]} 14. d6 {[%clk 00:37:46]} {[%emt 00:02:45]} Bxd6
{[%clk 00:32:58]} {[%emt 00:05:31]} 15. Nxd6 {[%clk 00:37:52]} {[%emt
00:00:03]} Rxd6 {[%clk 00:33:02]} {[%emt 00:00:06]} 16. Nb5 {[%clk 00:37:54]}
{[%emt 00:00:08]} Rd7 {[%clk 00:29:04]} {[%emt 00:04:08]} 17. Nd4 {[%clk
00:35:58]} {[%emt 00:02:06]} Bg4 {[%clk 00:28:18]} {[%emt 00:00:55]} 18. Bb5
{[%clk 00:29:58]} {[%emt 00:06:11]} Rd6 {[%clk 00:20:02]} {[%emt 00:08:26]} 19.
Bd2 {[%clk 00:26:25]} {[%emt 00:03:43]} a5 {[%clk 00:11:16]} {[%emt 00:08:56]}
20. Rfc1 {[%clk 00:18:12]} {[%emt 00:08:23]} Bd7 {[%clk 00:06:22]} {[%emt
00:05:05]} 21. Rc7 {[%clk 00:16:48]} {[%emt 00:01:32]} Nfg4 {[%clk 00:05:52]}
{[%emt 00:00:41]} 22. Bxd7 {[%clk 00:07:33]} {[%emt 00:09:25]} 1/2-1/2

[Event "Skol-SM i Schack 2024, Grupp A"]
[Site "Arena Varberg, Kattegattsvagen 26, Varberg, Sweden"]
[Date "2024.10.13"]
[Round "8.2"]
[White "Johansson, William"]
[Black "Frank, Anton"]
[Result "1-0"]
[TimeControl "45 minutes + 10 seconds per move from move one."]
[BlackTitle "CM"]
[WhiteFideId "1744070"]
[BlackFideId "1752383"]
[WhiteElo "1971"]
[BlackElo "2110"]

1. b3 {[%clk 00:45:11]} {[%emt 00:00:09]} e5 {[%clk 00:45:07]} {[%emt
00:00:12]} 2. Bb2 {[%clk 00:45:19]} {[%emt 00:00:02]} Nc6 {[%clk 00:45:16]}
{[%emt 00:00:01]} 3. c4 {[%clk 00:45:26]} {[%emt 00:00:04]} Nge7 {[%clk
00:45:23]} {[%emt 00:00:02]} 4. e3 {[%clk 00:45:33]} {[%emt 00:00:03]} d5
{[%clk 00:45:29]} {[%emt 00:00:04]} 5. cxd5 {[%clk 00:45:41]} {[%emt 00:00:03]}
Nxd5 {[%clk 00:45:37]} {[%emt 00:00:01]} 6. a3 {[%clk 00:45:48]} {[%emt
00:00:04]} Be6 {[%clk 00:44:58]} {[%emt 00:00:49]} 7. Qc2 {[%clk 00:45:25]}
{[%emt 00:00:32]} Qd7 {[%clk 00:42:07]} {[%emt 00:03:02]} 8. Bb5 {[%clk
00:43:55]} {[%emt 00:01:39]} f6 {[%clk 00:42:10]} {[%emt 00:00:07]} 9. d3
{[%clk 00:43:36]} {[%emt 00:00:29]} Bd6 {[%clk 00:40:30]} {[%emt 00:01:50]} 10.
Nd2 {[%clk 00:43:33]} {[%emt 00:00:13]} Nde7 {[%clk 00:39:20]} {[%emt
00:01:20]} 11. Ngf3 {[%clk 00:35:02]} {[%emt 00:08:41]} O-O {[%clk 00:37:25]}
{[%emt 00:02:05]} 12. O-O {[%clk 00:34:13]} {[%emt 00:00:59]} Kh8 {[%clk
00:36:58]} {[%emt 00:00:37]} 13. Rac1 {[%clk 00:32:29]} {[%emt 00:01:54]} a6
{[%clk 00:36:40]} {[%emt 00:00:29]} 14. Bxc6 {[%clk 00:32:12]} {[%emt
00:00:26]} Nxc6 {[%clk 00:36:44]} {[%emt 00:00:05]} 15. b4 {[%clk 00:31:55]}
{[%emt 00:00:27]} Bg4 {[%clk 00:35:53]} {[%emt 00:01:01]} 16. h3 {[%clk
00:29:18]} {[%emt 00:02:48]} Bh5 {[%clk 00:35:42]} {[%emt 00:00:21]} 17. Qc4
{[%clk 00:26:02]} {[%emt 00:03:27]} Rae8 {[%clk 00:34:55]} {[%emt 00:00:57]} 18.
Qh4 {[%clk 00:24:25]} {[%emt 00:01:47]} Qf7 {[%clk 00:34:56]} {[%emt 00:00:08]}
19. g4 {[%clk 00:23:00]} {[%emt 00:01:35]} Bg6 {[%clk 00:34:58]} {[%emt
00:00:08]} 20. e4 {[%clk 00:19:02]} {[%emt 00:04:09]} Qb3 {[%clk 00:34:15]}
{[%emt 00:00:53]} 21. Nxb3 {[%clk 00:19:09]} {[%emt 00:00:03]} 1-0

[Event "Skol-SM i Schack 2024, Grupp A"]
[Site "Arena Varberg, Kattegattsvagen 26, Varberg, Sweden"]
[Date "2024.10.13"]
[Round "8.3"]
[White "Kleist, Axel"]
[Black "Harlin, Jacob"]
[Result "1-0"]
[TimeControl "45 minutes + 10 seconds per move from move one."]
[WhiteFideId "1764322"]
[BlackFideId "1728180"]
[WhiteElo "1912"]
[BlackElo "1919"]

1. e4 {[%clk 00:45:17]} {[%emt 00:00:02]} c5 {[%clk 00:45:16]} {[%emt
00:00:05]} 2. Nf3 {[%clk 00:45:02]} {[%emt 00:00:25]} d6 {[%clk 00:45:25]}
{[%emt 00:00:01]} 3. d4 {[%clk 00:45:04]} {[%emt 00:00:08]} cxd4 {[%clk
00:45:34]} {[%emt 00:00:01]} 4. Nxd4 {[%clk 00:45:13]} {[%emt 00:00:01]} Nf6
{[%clk 00:45:43]} 5. Nc3 {[%clk 00:44:56]} {[%emt 00:00:26]} a6 {[%clk
00:45:52]} {[%emt 00:00:02]} 6. Bc4 {[%clk 00:44:59]} {[%emt 00:00:07]} e6
{[%clk 00:45:33]} {[%emt 00:00:28]} 7. Bb3 {[%clk 00:45:02]} {[%emt 00:00:07]}
b5 {[%clk 00:44:42]} {[%emt 00:01:02]} 8. Bg5 {[%clk 00:45:05]} {[%emt
00:00:07]} Be7 {[%clk 00:44:32]} {[%emt 00:00:20]} 9. Qf3 {[%clk 00:45:12]}
{[%emt 00:00:03]} Qc7 {[%clk 00:40:11]} {[%emt 00:04:31]} 10. O-O-O {[%clk
00:45:04]} {[%emt 00:00:17]} O-O {[%clk 00:33:42]} {[%emt 00:06:39]} 11. e5
{[%clk 00:44:46]} {[%emt 00:00:29]} Bb7 {[%clk 00:30:30]} {[%emt 00:03:22]} 12.
exf6 {[%clk 00:44:49]} {[%emt 00:00:06]} Bxf3 {[%clk 00:28:20]} {[%emt
00:02:20]} 13. fxe7 {[%clk 00:44:54]} {[%emt 00:00:05]} Re8 {[%clk 00:26:00]}
{[%emt 00:02:30]} 14. gxf3 {[%clk 00:44:57]} {[%emt 00:00:08]} h6 {[%clk
00:18:43]} {[%emt 00:07:27]} 15. Bh4 {[%clk 00:44:43]} {[%emt 00:00:22]} d5
{[%clk 00:18:43]} {[%emt 00:00:11]} 16. Kb1 {[%clk 00:41:22]} {[%emt 00:03:31]}
Nd7 {[%clk 00:15:06]} {[%emt 00:03:46]} 17. Rhg1 {[%clk 00:28:14]} {[%emt
00:13:19]} Qc5 {[%clk 00:12:23]} {[%emt 00:02:54]} 18. f4 {[%clk 00:26:46]}
{[%emt 00:01:37]} Rab8 {[%clk 00:08:33]} {[%emt 00:04:01]} 19. Nf5 {[%clk
00:20:59]} {[%emt 00:05:57]} exf5 {[%clk 00:07:39]} {[%emt 00:01:04]} 20. Rxd5
{[%clk 00:21:01]} {[%emt 00:00:08]} Qc6 {[%clk 00:00:55]} {[%emt 00:06:53]} 21.
Rxf5 {[%clk 00:20:53]} {[%emt 00:00:19]} Kh8 {[%clk 00:00:34]} {[%emt
00:00:30]} 22. Rxf7 {[%clk 00:18:47]} {[%emt 00:02:16]} Rg8 {[%clk 00:00:24]}
{[%emt 00:00:20]} 23. Bd5 {[%clk 00:16:03]} {[%emt 00:02:54]} Qd6 {[%clk
00:00:33]} {[%emt 00:00:01]} 24. Be4 {[%clk 00:16:01]} {[%emt 00:00:12]} Nf6
{[%clk 00:00:18]} {[%emt 00:00:25]} 25. Bxf6 {[%clk 00:15:51]} {[%emt
00:00:20]} 1-0

[Event "Skol-SM i Schack 2024, Grupp A"]
[Site "Arena Varberg, Kattegattsvagen 26, Varberg, Sweden"]
[Date "2024.10.13"]
[Round "8.4"]
[White "Schriever-Abeln, Marius"]
[Black "Fridman, Arvid"]
[Result "1-0"]
[TimeControl "45 minutes + 10 seconds per move from move one."]
[WhiteFideId "1752650"]
[BlackFideId "1758632"]
[WhiteElo "2009"]
[BlackElo "1895"]

1. d4 {[%clk 00:45:18]} {[%emt 00:00:02]} d5 {[%clk 00:45:19]} {[%emt
00:00:02]} 2. c4 {[%clk 00:45:25]} {[%emt 00:00:02]} c6 {[%clk 00:45:26]}
{[%emt 00:00:03]} 3. Nf3 {[%clk 00:45:33]} {[%emt 00:00:02]} Nf6 {[%clk
00:45:15]} {[%emt 00:00:20]} 4. g3 {[%clk 00:45:41]} {[%emt 00:00:03]} dxc4
{[%clk 00:45:01]} {[%emt 00:00:25]} 5. Bg2 {[%clk 00:44:15]} {[%emt 00:01:35]}
b5 {[%clk 00:44:51]} {[%emt 00:00:21]} 6. Ne5 {[%clk 00:42:50]} {[%emt
00:01:35]} Bb7 {[%clk 00:44:59]} {[%emt 00:00:02]} 7. a4 {[%clk 00:42:08]}
{[%emt 00:00:52]} a6 {[%clk 00:45:05]} {[%emt 00:00:04]} 8. O-O {[%clk
00:42:00]} {[%emt 00:00:17]} e6 {[%clk 00:45:04]} {[%emt 00:00:12]} 9. Nc3
{[%clk 00:40:28]} {[%emt 00:01:41]} Nd5 {[%clk 00:45:03]} {[%emt 00:00:11]} 10.
e4 {[%clk 00:38:49]} {[%emt 00:01:49]} Nxc3 {[%clk 00:45:07]} {[%emt 00:00:07]}
11. bxc3 {[%clk 00:38:58]} {[%emt 00:00:01]} Nd7 {[%clk 00:41:44]} {[%emt
00:03:33]} 12. Bf4 {[%clk 00:37:30]} {[%emt 00:01:37]} Nf6 {[%clk 00:35:08]}
{[%emt 00:06:47]} 13. h4 {[%clk 00:33:31]} {[%emt 00:04:08]} Be7 {[%clk
00:33:31]} {[%emt 00:01:47]} 14. Ng4 {[%clk 00:31:06]} {[%emt 00:02:35]} c5
{[%clk 00:28:57]} {[%emt 00:04:44]} 15. Nxf6+ {[%clk 00:24:03]} {[%emt
00:07:13]} Bxf6 {[%clk 00:25:39]} {[%emt 00:03:28]} 16. e5 {[%clk 00:23:43]}
{[%emt 00:00:30]} Bxg2 {[%clk 00:25:34]} {[%emt 00:00:15]} 17. Kxg2 {[%clk
00:23:51]} {[%emt 00:00:02]} Be7 {[%clk 00:24:19]} {[%emt 00:01:26]} 18. Qg4
{[%clk 00:23:43]} {[%emt 00:00:17]} g6 {[%clk 00:20:55]} {[%emt 00:03:35]} 19.
Rfd1 {[%clk 00:21:42]} {[%emt 00:02:11]} Qd5+ {[%clk 00:18:20]} {[%emt
00:02:44]} 20. Kh2 {[%clk 00:21:29]} {[%emt 00:00:23]} Rb8 {[%clk 00:17:44]}
{[%emt 00:00:47]} 21. axb5 {[%clk 00:20:10]} {[%emt 00:01:30]} axb5 {[%clk
00:17:35]} {[%emt 00:00:16]} 22. Ra7 {[%clk 00:19:19]} {[%emt 00:01:03]} Qc6
{[%clk 00:15:29]} {[%emt 00:02:16]} 23. d5 {[%clk 00:16:13]} {[%emt 00:03:16]}
exd5 {[%clk 00:13:16]} {[%emt 00:02:23]} 24. e6 {[%clk 00:16:19]} {[%emt
00:00:05]} f5 {[%clk 00:10:33]} {[%emt 00:02:53]} 25. Qe2 {[%clk 00:15:55]}
{[%emt 00:00:33]} Ra8 {[%clk 00:08:43]} {[%emt 00:02:00]} 26. Rc7 {[%clk
00:10:47]} {[%emt 00:05:18]} Qb6 {[%clk 00:07:25]} {[%emt 00:01:29]} 27. Rxd5
{[%clk 00:10:34]} {[%emt 00:00:23]} Rd8 {[%clk 00:04:14]} {[%emt 00:03:20]} 28.
Rxe7+ {[%clk 00:09:44]} {[%emt 00:01:01]} 1-0

[Event "Skol-SM i Schack 2024, Grupp A"]
[Site "Arena Varberg, Kattegattsvagen 26, Varberg, Sweden"]
[Date "2024.10.13"]
[Round "7.1"]
[White "Frank, Anton"]
[Black "Joensson, Oscar"]
[Result "1/2-1/2"]
[TimeControl "45 minutes + 10 seconds per move from move one."]
[WhiteTitle "CM"]
[WhiteFideId "1752383"]
[BlackFideId "1729977"]
[WhiteElo "2110"]
[BlackElo "1955"]

1. e4 {[%clk 00:44:47]} {[%emt 00:00:32]} c6 {[%clk 00:45:18]} {[%emt
00:00:04]} 2. d4 {[%clk 00:44:56]} d5 {[%clk 00:45:27]} {[%emt 00:00:01]} 3. e5
{[%clk 00:45:05]} c5 {[%clk 00:45:36]} 4. c3 {[%clk 00:45:14]} {[%emt
00:00:01]} Nc6 {[%clk 00:45:45]} 5. Be2 {[%clk 00:45:23]} Bf5 {[%clk 00:45:54]}
{[%emt 00:00:01]} 6. Nf3 {[%clk 00:45:32]} {[%emt 00:00:01]} e6 {[%clk
00:46:03]} 7. O-O {[%clk 00:45:40]} {[%emt 00:00:01]} Bg6 {[%clk 00:46:08]}
{[%emt 00:00:06]} 8. Be3 {[%clk 00:44:42]} {[%emt 00:01:07]} cxd4 {[%clk
00:42:50]} {[%emt 00:03:29]} 9. Nxd4 {[%clk 00:44:49]} {[%emt 00:00:03]} Nxd4
{[%clk 00:30:23]} {[%emt 00:12:37]} 10. cxd4 {[%clk 00:44:54]} {[%emt
00:00:05]} Ne7 {[%clk 00:29:15]} {[%emt 00:01:17]} 11. Nc3 {[%clk 00:39:41]}
{[%emt 00:05:23]} Nc6 {[%clk 00:28:59]} {[%emt 00:00:26]} 12. a3 {[%clk
00:39:14]} {[%emt 00:00:37]} a6 {[%clk 00:22:35]} {[%emt 00:06:34]} 13. b4
{[%clk 00:37:07]} {[%emt 00:02:17]} Be7 {[%clk 00:14:52]} {[%emt 00:07:53]} 14.
Rc1 {[%clk 00:36:10]} {[%emt 00:01:08]} O-O {[%clk 00:13:55]} {[%emt 00:01:07]}
15. Na4 {[%clk 00:35:24]} {[%emt 00:00:56]} Nb8 {[%clk 00:12:55]} {[%emt
00:01:10]} 16. Qb3 {[%clk 00:31:29]} {[%emt 00:04:05]} b5 {[%clk 00:12:36]}
{[%emt 00:00:30]} 17. Nc5 {[%clk 00:31:03]} {[%emt 00:00:35]} Bxc5 {[%clk
00:11:39]} {[%emt 00:01:07]} 18. bxc5 {[%clk 00:25:31]} {[%emt 00:05:42]} Nc6
{[%clk 00:11:24]} {[%emt 00:00:25]} 19. a4 {[%clk 00:24:01]} {[%emt 00:01:40]}
b4 {[%clk 00:10:48]} {[%emt 00:00:46]} 20. g3 {[%clk 00:21:45]} {[%emt
00:02:26]} Qb8 {[%clk 00:10:27]} {[%emt 00:00:30]} 21. h4 {[%clk 00:20:54]}
{[%emt 00:01:02]} h6 {[%clk 00:09:13]} {[%emt 00:01:25]} 22. f4 {[%clk
00:18:59]} {[%emt 00:02:04]} Be4 {[%clk 00:09:07]} {[%emt 00:00:16]} 23. Rf2
{[%clk 00:17:42]} {[%emt 00:01:27]} Qb7 {[%clk 00:06:56]} {[%emt 00:02:21]} 24.
Qb2 {[%clk 00:14:10]} {[%emt 00:03:42]} Rfc8 {[%clk 00:06:50]} {[%emt
00:00:16]} 25. h5 {[%clk 00:13:14]} {[%emt 00:01:06]} Qe7 {[%clk 00:05:25]}
{[%emt 00:01:36]} 26. Rh2 {[%clk 00:12:30]} {[%emt 00:00:53]} f5 {[%clk
00:04:40]} {[%emt 00:00:54]} 27. Kf2 {[%clk 00:12:16]} {[%emt 00:00:24]} Kh8
{[%clk 00:04:20]} {[%emt 00:00:31]} 28. Rg1 {[%clk 00:11:04]} {[%emt 00:01:22]}
Rf8 {[%clk 00:03:21]} {[%emt 00:01:09]} 29. Ra1 {[%clk 00:07:26]} {[%emt
00:03:48]} Qb7 {[%clk 00:03:27]} {[%emt 00:00:04]} 30. Bd2 {[%clk 00:04:54]}
{[%emt 00:02:42]} Rab8 {[%clk 00:00:50]} {[%emt 00:02:47]} 31. Kg1 {[%clk
00:04:00]} {[%emt 00:01:04]} Na5 {[%clk 00:00:37]} {[%emt 00:00:23]} 32. Be1
{[%clk 00:03:58]} {[%emt 00:00:11]} Nc4 {[%clk 00:00:30]} {[%emt 00:00:17]} 33.
Qb3 {[%clk 00:03:32]} {[%emt 00:00:37]} Na5 {[%clk 00:00:28]} {[%emt 00:00:12]}
34. Qb2 {[%clk 00:03:05]} {[%emt 00:00:37]} Nc4 {[%clk 00:00:37]} {[%emt
00:00:01]} 35. Qb3 {[%clk 00:00:48]} {[%emt 00:02:28]} Na5 {[%clk 00:00:45]}
{[%emt 00:00:01]} 36. Qb2 {[%clk 00:00:22]} {[%emt 00:00:35]} 1/2-1/2

[Event "Skol-SM i Schack 2024, Grupp A"]
[Site "Arena Varberg, Kattegattsvagen 26, Varberg, Sweden"]
[Date "2024.10.13"]
[Round "8.5"]
[White "Langhals, Mattias"]
[Black "Wedenberg, Oliver"]
[Result "1-0"]
[TimeControl "45 minutes + 10 seconds per move from move one."]
[WhiteFideId "1779168"]
[BlackFideId "1767909"]
[WhiteElo "1697"]
[BlackElo "1858"]

1. e4 {[%clk 00:45:08]} {[%emt 00:00:11]} c5 {[%clk 00:45:16]} {[%emt
00:00:04]} 2. Nf3 {[%clk 00:45:03]} {[%emt 00:00:16]} Nc6 {[%clk 00:45:23]}
{[%emt 00:00:03]} 3. d4 {[%clk 00:45:06]} {[%emt 00:00:06]} cxd4 {[%clk
00:45:32]} {[%emt 00:00:02]} 4. Nxd4 {[%clk 00:45:10]} {[%emt 00:00:06]} e5
{[%clk 00:45:40]} {[%emt 00:00:02]} 5. Nb5 {[%clk 00:44:49]} {[%emt 00:00:31]}
d6 {[%clk 00:45:48]} {[%emt 00:00:02]} 6. N1c3 {[%clk 00:44:36]} {[%emt
00:00:23]} a6 {[%clk 00:45:52]} {[%emt 00:00:07]} 7. Na3 {[%clk 00:44:41]}
{[%emt 00:00:04]} b5 {[%clk 00:44:38]} {[%emt 00:01:25]} 8. Nd5 {[%clk
00:43:37]} {[%emt 00:01:13]} Nge7 {[%clk 00:44:45]} {[%emt 00:00:03]} 9. Be3
{[%clk 00:42:12]} {[%emt 00:01:34]} Nxd5 {[%clk 00:44:40]} {[%emt 00:00:16]} 10.
Qxd5 {[%clk 00:40:08]} {[%emt 00:02:14]} Bb7 {[%clk 00:42:46]} {[%emt
00:02:04]} 11. Qd2 {[%clk 00:37:49]} {[%emt 00:02:29]} Be7 {[%clk 00:41:42]}
{[%emt 00:01:14]} 12. Be2 {[%clk 00:37:04]} {[%emt 00:00:55]} O-O {[%clk
00:35:36]} {[%emt 00:06:16]} 13. O-O {[%clk 00:36:40]} {[%emt 00:00:33]} f5
{[%clk 00:30:57]} {[%emt 00:04:49]} 14. f3 {[%clk 00:35:48]} {[%emt 00:01:02]}
f4 {[%clk 00:30:20]} {[%emt 00:00:47]} 15. Bf2 {[%clk 00:35:50]} {[%emt
00:00:07]} Kh8 {[%clk 00:29:22]} {[%emt 00:01:08]} 16. c3 {[%clk 00:33:48]}
{[%emt 00:02:13]} Bc8 {[%clk 00:28:45]} {[%emt 00:00:47]} 17. Qd5 {[%clk
00:32:56]} {[%emt 00:01:01]} Qe8 {[%clk 00:27:40]} {[%emt 00:01:16]} 18. Nc2
{[%clk 00:31:05]} {[%emt 00:02:00]} Bd7 {[%clk 00:26:50]} {[%emt 00:01:00]} 19.
c4 {[%clk 00:29:41]} {[%emt 00:01:34]} b4 {[%clk 00:22:36]} {[%emt 00:04:25]}
20. Rfd1 {[%clk 00:27:35]} {[%emt 00:02:15]} Rd8 {[%clk 00:20:15]} {[%emt
00:02:30]} 21. Bb6 {[%clk 00:25:55]} {[%emt 00:01:51]} Rc8 {[%clk 00:17:49]}
{[%emt 00:02:37]} 22. c5 {[%clk 00:24:34]} {[%emt 00:01:31]} Rf6 {[%clk
00:13:18]} {[%emt 00:04:41]} 23. Bxa6 {[%clk 00:15:31]} {[%emt 00:09:13]} Rb8
{[%clk 00:13:27]} {[%emt 00:00:01]} 24. Bb5 {[%clk 00:11:36]} {[%emt 00:04:06]}
Rh6 {[%clk 00:11:33]} {[%emt 00:02:03]} 25. Bxc6 {[%clk 00:09:40]} {[%emt
00:02:06]} Bxc6 {[%clk 00:11:34]} {[%emt 00:00:09]} 26. Qc4 {[%clk 00:09:32]}
{[%emt 00:00:18]} dxc5 {[%clk 00:09:01]} {[%emt 00:02:43]} 27. Bxc5 {[%clk
00:09:24]} {[%emt 00:00:17]} Bb5 {[%clk 00:07:27]} {[%emt 00:01:43]} 28. Qd5
{[%clk 00:07:55]} {[%emt 00:01:40]} Rd8 {[%clk 00:07:15]} {[%emt 00:00:23]} 29.
Qxe5 {[%clk 00:07:31]} {[%emt 00:00:33]} Re6 {[%clk 00:05:13]} {[%emt
00:02:12]} 30. Rxd8 {[%clk 00:04:22]} {[%emt 00:03:19]} Bxd8 {[%clk 00:03:07]}
{[%emt 00:02:16]} 31. Qxf4 {[%clk 00:04:02]} {[%emt 00:00:30]} Rc6 {[%clk
00:03:11]} {[%emt 00:00:06]} 32. Qf5 {[%clk 00:03:25]} {[%emt 00:00:47]} g6
{[%clk 00:01:29]} {[%emt 00:01:53]} 33. Bd4+ {[%clk 00:03:34]} Kg8 {[%clk
00:01:19]} {[%emt 00:00:20]} 34. Qxb5 {[%clk 00:03:33]} {[%emt 00:00:10]} Rxc2
{[%clk 00:01:18]} {[%emt 00:00:11]} 35. Qxe8# {[%clk 00:03:32]} {[%emt
00:00:02]} 1-0

[Event "Skol-SM i Schack 2024, Grupp A"]
[Site "Arena Varberg, Kattegattsvagen 26, Varberg, Sweden"]
[Date "2024.10.13"]
[Round "7.2"]
[White "Fridman, Arvid"]
[Black "Kleist, Axel"]
[Result "0-1"]
[TimeControl "45 minutes + 10 seconds per move from move one."]
[WhiteFideId "1758632"]
[BlackFideId "1764322"]
[WhiteElo "1895"]
[BlackElo "1912"]

1. d4 {[%clk 00:43:46]} {[%emt 00:01:33]} e6 {[%clk 00:45:00]} {[%emt
00:00:21]} 2. Nc3 {[%clk 00:43:21]} {[%emt 00:00:34]} Bb4 {[%clk 00:43:46]}
{[%emt 00:01:25]} 3. e4 {[%clk 00:43:23]} {[%emt 00:00:08]} d5 {[%clk
00:43:47]} {[%emt 00:00:09]} 4. e5 {[%clk 00:43:31]} {[%emt 00:00:01]} Ne7
{[%clk 00:42:43]} {[%emt 00:01:14]} 5. a3 {[%clk 00:42:51]} {[%emt 00:00:51]}
Bxc3+ {[%clk 00:42:46]} {[%emt 00:00:07]} 6. bxc3 {[%clk 00:43:00]} c5 {[%clk
00:42:41]} {[%emt 00:00:15]} 7. Nf3 {[%clk 00:42:04]} {[%emt 00:01:05]} Nbc6
{[%clk 00:41:08]} {[%emt 00:01:43]} 8. h4 {[%clk 00:39:45]} {[%emt 00:02:29]}
Qc7 {[%clk 00:34:42]} {[%emt 00:06:36]} 9. Bd3 {[%clk 00:25:56]} {[%emt
00:14:00]} c4 {[%clk 00:32:50]} {[%emt 00:02:02]} 10. Be2 {[%clk 00:25:44]}
{[%emt 00:00:21]} Bd7 {[%clk 00:31:31]} {[%emt 00:01:29]} 11. Qd2 {[%clk
00:25:16]} {[%emt 00:00:39]} f6 {[%clk 00:16:35]} {[%emt 00:15:05]} 12. exf6
{[%clk 00:18:33]} {[%emt 00:06:54]} gxf6 {[%clk 00:16:38]} {[%emt 00:00:07]} 13.
Qh6 {[%clk 00:17:56]} {[%emt 00:00:46]} O-O-O {[%clk 00:16:44]} {[%emt
00:00:04]} 14. Qxf6 {[%clk 00:16:27]} {[%emt 00:01:40]} Nf5 {[%clk 00:15:13]}
{[%emt 00:01:40]} 15. Bh6 {[%clk 00:11:53]} {[%emt 00:04:44]} Rhg8 {[%clk
00:13:41]} {[%emt 00:01:42]} 16. h5 {[%clk 00:09:46]} {[%emt 00:02:18]} Qa5
{[%clk 00:13:30]} {[%emt 00:00:21]} 17. Kd2 {[%clk 00:06:13]} {[%emt 00:03:43]}
Nd6 {[%clk 00:12:06]} {[%emt 00:01:33]} 18. Bd3 {[%clk 00:04:29]} {[%emt
00:01:54]} cxd3 {[%clk 00:12:04]} {[%emt 00:00:12]} 19. cxd3 {[%clk 00:04:38]}
{[%emt 00:00:02]} Rxg2 {[%clk 00:09:25]} {[%emt 00:02:49]} 20. Ng5 {[%clk
00:04:32]} {[%emt 00:00:16]} Nf5 {[%clk 00:09:01]} {[%emt 00:00:34]} 21. Ke2
{[%clk 00:03:41]} {[%emt 00:01:01]} Nxh6 {[%clk 00:07:45]} {[%emt 00:01:25]} 22.
Qxh6 {[%clk 00:03:50]} {[%emt 00:00:02]} Rg8 {[%clk 00:07:40]} {[%emt
00:00:14]} 23. Rag1 {[%clk 00:00:27]} {[%emt 00:03:33]} Rxg1 {[%clk 00:07:25]}
{[%emt 00:00:26]} 24. Rxg1 {[%clk 00:00:36]} Qxc3 {[%clk 00:07:21]} {[%emt
00:00:14]} 25. Qxh7 {[%clk 00:00:11]} {[%emt 00:00:36]} Nxd4+ {[%clk 00:07:09]}
{[%emt 00:00:21]} 26. Kf1 {[%clk 00:00:12]} {[%emt 00:00:10]} Qc1+ {[%clk
00:07:05]} {[%emt 00:00:13]} 27. Kg2 {[%clk 00:00:11]} {[%emt 00:00:12]} Qxg5+
{[%clk 00:06:50]} {[%emt 00:00:25]} 0-1